bitfinex/quotes_SOLUSD_20251001
["timestamp","ask_amount","ask_price","bid_price","bid_amount"]
[1759354958034,35.75115949,219.12,219.1,15.44059138]
[1759354958237,32.69,219.12,219.1,15.44059138]
[1759354959048,35.75115949,219.12,219.1,15.44059138]
[1759354959349,32.69,219.12,219.1,15.44059138]
[1759354959947,35.75544585,219.12,219.1,15.44059138]
[1759354960146,32.69,219.12,219.1,15.44059138]
[1759354960845,35.75544585,219.12,219.1,15.44059138]
[1759354961047,32.69,219.12,219.1,15.44059138]
[1759354965855,32.02,219.12,219.1,17.75336494]
[1759354967954,32.02,219.12,219.1,16.11059138]
[1759354969551,32.02,219.12,219.1,17.08336494]
[1759354969765,32.02,219.12,219.11,4.56391766]
[1759354977364,31.98,219.12,219.11,4.56391766]
[1759354979468,35.04544585,219.12,219.11,4.56391766]
[1759354980152,35.70544585,219.12,219.11,4.56391766]
[1759354980354,31.98,219.12,219.11,4.56391766]
[1759354980556,35.04544585,219.12,219.11,4.56391766]
[1759354981047,35.04793703,219.12,219.11,4.56391766]
[1759354985469,31.98,219.12,219.11,4.56391766]
[1759354993269,35.04798628,219.12,219.11,4.56391766]
[1759354997672,31.98,219.12,219.11,4.56391766]
[1759354997973,35.04798628,219.12,219.11,4.56391766]
[1759354998175,31.98,219.12,219.11,4.56391766]
[1759355000449,35.04798628,219.12,219.11,4.56391766]
[1759355005785,35.04798628,219.12,219.11,18.27287646]
[1759355014088,35.04798628,219.12,219.11,18.96287646]
[1759355014286,31.98,219.12,219.11,18.96287646]
[1759355014591,31.98,219.12,219.11,32.24991611]
[1759355014971,35.04798628,219.12,219.11,32.24991611]
[1759355015192,31.98,219.12,219.11,32.24991611]
[1759355015390,35.04798628,219.12,219.11,32.24991611]
[1759355015690,31.98,219.12,219.11,32.24991611]
[1759355015890,35.04798628,219.12,219.11,32.24991611]
[1759355016093,31.98,219.12,219.11,32.24991611]
[1759355016386,35.04798628,219.12,219.11,32.24991611]
[1759355016576,31.98,219.12,219.11,32.24991611]
[1759355016776,35.04798628,219.12,219.11,32.24991611]
[1759355016977,31.98,219.12,219.11,32.24991611]
[1759355017178,35.04798628,219.12,219.11,32.24991611]
[1759355019804,3.06798628,219.12,219.11,32.24991611]
[1759355019989,35.02798628,219.12,219.11,32.24991611]
[1759355023696,3.06798628,219.12,219.11,32.24991611]
[1759355023894,35.02798628,219.12,219.11,32.24991611]
[1759355024280,31.96,219.12,219.11,32.24991611]
[1759355027280,35.02798628,219.12,219.11,32.24991611]
[1759355027676,3.76798628,219.12,219.11,29.68267062]
[1759355027996,32.66,219.12,219.11,29.68267062]
[1759355028782,35.72798628,219.12,219.11,29.68267062]
[1759355029003,32.66,219.12,219.11,29.68267062]
[1759355029890,35.72798628,219.12,219.11,29.68267062]
[1759355030102,32.66,219.12,219.11,29.68267062]
[1759355030794,32.66,219.12,219.11,18.27287646]
[1759355030982,35.72798628,219.12,219.11,18.27287646]
[1759355031182,32.66,219.12,219.11,18.27287646]
[1759355032004,35.72798628,219.12,219.11,18.27287646]
[1759355032205,32.66,219.12,219.11,18.27287646]
[1759355033204,35.72798628,219.12,219.11,18.27287646]
[1759355033377,32.66,219.12,219.11,18.27287646]
[1759355034189,35.72798628,219.12,219.11,18.27287646]
[1759355034386,32.66,219.12,219.11,18.27287646]
[1759355034680,32.66,219.12,219.11,4.56391766]
[1759355034893,32.66,219.12,219.11,13.70958528]
[1759355035098,35.72798628,219.12,219.09,4.56433429]
[1759355035301,3.73798628,219.11,219.09,4.56433429]
[1759355035497,35.69798628,219.1,219.09,4.56433429]
[1759355035700,32.63,219.1,219.09,4.56433429]
[1759355035892,35.69798628,219.1,219.09,4.56433429]
[1759355036084,35.69798628,219.1,219.08,4.56454263]
[1759355036283,0.67,219.09,219.08,4.56454263]
[1759355040511,0.67,219.09,219.07,4.56475099]
[1759355040687,31.96,219.08,219.07,4.56475099]
[1759355040886,32.63,219.08,219.07,4.56475099]
[1759355041902,31.96,219.08,219.07,4.56475099]
[1759355042407,32.63,219.08,219.07,4.56475099]
[1759355042618,31.96,219.08,219.07,4.56475099]
[1759355042916,32.63,219.08,219.07,4.56475099]
[1759355043299,46.34146507,219.08,219.07,4.56475099]
[1759355044628,32.63,219.08,219.05,15.97763083]
[1759355044870,32.63,219.08,219.05,4.56516776]
[1759355044871,0.67,219.07,219.05,4.56516776]
[1759355045117,32.63,219.06,219.03,4.56558462]
[1759355045316,0.67,219.05,219.03,4.56558462]
[1759355045526,31.96,219.04,219.03,4.56558462]
[1759355046299,32.63,219.04,219.03,4.56558462]
[1759355046900,32.63,219.04,219.02,4.56579307]
[1759355050310,0.67,219.03,219.02,4.56579307]
[1759355050703,0.67,219.03,219.0,4.56621004]
[1759355050906,31.96,219.02,219.0,6.21046429]
[1759355051101,32.63,219.02,219.0,6.21046429]
[1759355051611,31.96,219.02,219.0,6.89046429]
[1759355052029,31.96,219.02,219.0,6.21046429]
[1759355053034,31.96,219.02,219.0,19.92694464]
[1759355054209,32.63,219.02,219.0,19.92694464]
[1759355054527,32.63,219.02,219.0,6.21046429]
[1759355055837,0.67,219.01,219.0,6.21046429]
[1759355056706,0.67,219.01,219.0,4.56621004]
[1759355057830,0.67,219.01,218.99,15.98208132]
[1759355058037,32.63,219.0,218.99,15.98208132]
[1759355060230,32.63,219.0,218.99,11.41566277]
[1759355064853,31.96,219.0,218.99,15.98208132]
[1759355065051,32.63,219.0,218.99,15.98208132]
[1759355065923,32.63,219.0,218.99,11.41566277]
[1759355066160,32.63,219.0,218.98,4.56662708]
[1759355066352,0.67,218.99,218.98,4.56662708]
[1759355068858,0.67,218.99,218.97,4.56683563]
[1759355069051,31.96,218.98,218.97,4.56683563]
[1759355085260,31.96,218.98,218.96,15.9841765]
[1759355085643,32.63,218.98,218.96,15.9841765]
[1759355090557,0.67,218.99,218.96,15.9841765]
[1759355090736,31.94,218.97,218.96,15.9841765]
[1759355097052,31.94,218.98,218.96,15.9841765]
[1759355097557,32.65,218.98,218.96,15.9841765]
[1759355097738,31.94,218.98,218.96,15.9841765]
[1759355098863,0.71,218.99,218.96,15.9841765]
[1759355099058,31.92,218.98,218.96,15.9841765]
[1759355100062,31.92,218.98,218.96,16.6841765]
[1759355100247,31.92,218.98,218.96,15.9841765]
[1759355100447,31.92,218.98,218.96,16.6841765]
[1759355100974,31.92,218.98,218.96,15.9841765]
[1759355101180,31.92,218.98,218.96,16.6841765]
[1759355102170,0.71,218.97,218.96,15.9841765]
[1759355102581,32.63,218.98,218.96,15.9841765]
[1759355103487,31.92,218.98,218.96,15.9841765]
[1759355103784,31.92,218.98,218.96,16.6841765]
[1759355104094,31.92,218.98,218.97,0.7]
[1759355104277,3.06323274,219.0,218.97,0.7]
[1759355104466,31.92,218.99,218.97,0.7]
[1759355104667,31.92,218.99,218.96,15.9841765]
[1759355104864,31.92,218.99,218.97,0.7]
[1759355105956,31.92,218.99,218.98,4.56662708]
[1759355108175,32.63,218.99,218.96,15.9841765]
[1759355108476,32.63,218.99,218.96,16.6841765]
[1759355108651,31.92,218.99,218.96,15.9841765]
[1759355108852,31.92,218.99,218.97,0.7]
[1759355110260,31.92,218.99,218.98,4.56662708]
[1759355111979,31.92,218.99,218.98,0.7]
[1759355112278,31.92,218.99,218.97,0.7]
[1759355112579,31.92,218.99,218.96,16.6841765]
[1759355112881,31.92,218.99,218.96,15.9841765]
[1759355113054,31.92,218.99,218.98,4.56662708]
[1759355113876,32.63,218.99,218.98,4.56662708]
[1759355114378,31.92,218.99,218.98,4.56662708]
[1759355115580,31.92,218.99,218.97,4.56683563]
[1759355115980,31.92,218.99,218.97,5.26683563]
[1759355116370,31.92,218.99,218.97,4.56683563]
[1759355116578,31.92,218.99,218.97,5.26683563]
[1759355116779,31.92,218.99,218.97,4.56683563]
[1759355117085,32.63,218.99,218.97,4.56683563]
[1759355123861,32.26855132,218.99,218.97,4.56683563]
[1759355126284,32.26855132,218.99,218.98,18.28561644]
[1759355133483,0.71,218.99,218.98,18.28561644]
[1759355133793,35.61446509,219.0,218.98,18.28561644]
[1759355133981,32.55,219.0,218.98,18.28561644]
[1759355134582,0.65,218.99,218.98,18.28561644]
[1759355135066,31.9,219.0,218.98,18.28561644]
[1759355135269,32.55,219.0,218.98,18.28561644]
[1759355136188,31.9,219.0,218.98,18.28561644]
[1759355136390,32.55,219.0,218.98,18.28561644]
[1759355137192,31.9,219.0,218.98,18.28561644]
[1759355137377,31.9,219.0,218.98,18.97561644]
[1759355137586,31.9,219.0,218.98,18.28561644]
[1759355137888,32.55,219.0,218.98,18.28561644]
[1759355138597,0.65,218.99,218.98,18.28561644]
[1759355139771,32.55,219.0,218.98,18.28561644]
[1759355140990,32.55,219.0,218.97,15.98392472]
[1759355141201,32.55,219.0,218.97,16.67392472]
[1759355141410,32.55,219.0,218.99,13.71898936]
[1759355142006,32.55,219.0,218.99,18.28540791]
[1759355143008,32.55,219.0,218.99,4.56641855]
[1759355143196,32.55,219.0,218.97,15.98392472]
[1759355143516,32.55,219.0,218.99,13.71898936]
[1759355144204,32.55,219.0,218.99,18.28540791]
[1759355145622,31.9,219.0,218.99,18.28540791]
[1759355147004,0.65,219.01,218.99,18.28540791]
[1759355147205,31.88,219.0,218.99,18.28540791]
[1759355151412,31.88,219.0,218.99,4.56641855]
[1759355151609,31.88,219.0,218.97,11.41708909]
[1759355151786,31.88,219.0,218.98,14.40898936]
[1759355152788,31.88,219.0,218.99,4.56641855]
[1759355155300,32.59,219.0,218.99,4.56641855]
[1759355155702,31.88,219.0,218.99,4.56641855]
[1759355159517,31.88,219.0,218.98,13.71898936]
[1759355159518,31.88,219.0,218.98,4.56662708]
[1759355159699,31.88,219.0,218.99,13.71898936]
[1759355160897,31.88,219.0,218.99,14.37898936]
[1759355161598,31.88,219.0,218.99,18.94540791]
[1759355162303,31.88,219.01,218.99,18.94540791]
[1759355162503,3.82589275,219.07,218.99,18.94540791]
[1759355162504,3.06446509,219.02,219.01,20.8]
[1759355162703,3.06446509,219.05,219.02,20.8]
[1759355162918,31.86,219.07,219.03,24.03057419]
[1759355163215,31.86,219.07,219.04,0.66]
[1759355163528,31.86,219.07,219.05,4.56516776]
[1759355164106,31.86,219.07,219.05,5.22516776]
[1759355164399,31.86,219.07,219.05,18.94039394]
[1759355166328,31.86,219.07,219.05,18.28039394]
[1759355170130,132.9,219.09,219.06,3.23057419]
[1759355170311,132.9,219.09,219.07,2.57057419]
[1759355170505,132.9,219.09,219.07,3.23057419]
[1759355171030,31.86,219.11,219.08,13.71334537]
[1759355171223,32.57,219.11,219.08,13.71334537]
[1759355171626,32.57,219.11,219.09,4.56433429]
[1759355172231,31.86,219.12,219.09,17.6183876]
[1759355172452,32.57,219.12,219.09,31.99110614]
[1759355172628,32.57,219.12,219.09,18.2783876]
[1759355173028,32.57,219.12,219.1,13.71146507]
[1759355174034,32.57,219.12,219.11,4.56391766]
[1759355177525,31.86,219.12,219.11,4.56391766]
[1759355177921,132.9,219.13,219.11,18.27475607]
[1759355178139,164.74,219.13,219.11,18.93475607]
[1759355178514,164.74,219.13,219.11,18.27475607]
[1759355178911,165.45,219.13,219.11,18.27475607]
[1759355179643,164.74,219.13,219.11,18.27475607]
[1759355180136,133.61,219.13,219.11,18.27475607]
[1759355180910,132.9,219.13,219.11,4.56391766]
[1759355181114,132.9,219.13,219.11,5.24391766]
[1759355181310,132.9,219.13,219.12,18.27454779]
[1759355183113,0.72,219.15,219.12,19.91776538]
[1759355183330,32.56,219.15,219.12,20.59776538]
[1759355183533,31.84,219.15,219.12,18.29620042]
[1759355183850,31.84,219.15,219.13,13.7089588]
[1759355184527,31.84,219.15,219.13,14.4089588]
[1759355184840,0.68,219.16,219.14,4.56329287]
[1759355184841,31.84,219.16,219.14,4.56329287]
[1759355185041,32.52,219.16,219.14,4.56329287]
[1759355185335,32.52,219.16,219.14,18.27225167]
[1759355185939,32.52,219.16,219.14,4.56329287]
[1759355187734,0.68,219.15,219.14,4.56329287]
[1759355188342,32.52,219.16,219.14,4.56329287]
[1759355190152,0.68,219.16,219.14,4.56329287]
[1759355190330,32.52,219.16,219.14,4.56329287]
[1759355190852,1e-08,219.17,219.15,13.2196928]
[1759355191154,1e-08,219.17,219.16,12.5196928]
[1759355191455,1e-08,219.17,219.16,15.04705294]
[1759355191834,1e-08,219.17,219.16,13.40383535]
[1759355192034,1e-08,219.17,219.16,17.96671178]
[1759355203036,1e-08,219.17,219.16,19.60992937]
[1759355203236,1e-08,219.17,219.16,17.78256923]
[1759355203653,1e-08,219.17,219.16,19.60976243]
[1759355203852,1e-08,219.17,219.16,19.89408557]
[1759355208369,1e-08,219.21,219.2,20.8]
[1759355208669,1e-08,219.22,219.21,31.67647521]
[1759355208856,1e-08,219.22,219.21,34.0196928]
[1759355211048,1e-08,219.22,219.21,38.58152848]
[1759355211250,1e-08,219.22,219.21,40.40838788]
[1759355212673,1e-08,219.22,219.21,71.50838788]
[1759355212875,0.68000001,219.22,219.21,71.50838788]
[1759355214053,1e-08,219.22,219.21,71.50838788]
[1759355216667,1e-08,219.22,219.21,72.21838788]
[1759355216869,1e-08,219.22,219.21,71.50838788]
[1759355218458,1e-08,219.22,219.21,50.70838788]
[1759355226458,1e-08,219.22,219.21,51.41838788]
[1759355226659,1e-08,219.22,219.21,50.70838788]
[1759355227786,1e-08,219.22,219.21,51.41838788]
[1759355234389,1e-08,219.22,219.21,52.33902149]
[1759355235366,1e-08,219.22,219.21,20.53902149]
[1759355235570,1e-08,219.22,219.21,52.33902149]
[1759355236183,1e-08,219.22,219.21,49.77517029]
[1759355236369,1e-08,219.22,219.21,52.33902149]
[1759355246000,1e-08,219.22,219.21,51.62902149]
[1759355246193,1e-08,219.22,219.21,52.29902149]
[1759355246500,0.2,219.27,219.25,10.87647521]
[1759355246697,0.2,219.27,219.26,45.24032641]
[1759355247084,0.2,219.27,219.26,47.73668533]
[1759355247284,0.2,219.29,219.26,47.73668533]
[1759355247285,1e-08,219.29,219.27,10.87647521]
[1759355247513,1e-08,219.29,219.28,42.96079835]
[1759355247693,1e-08,219.29,219.28,43.63079835]
[1759355247919,1e-08,219.29,219.28,48.02067497]
[1759355248215,1e-08,219.29,219.28,52.58105439]
[1759355255492,1e-08,219.33,219.32,10.87647521]
[1759355255682,1e-08,219.33,219.32,45.52464955]
[1759355255886,1e-08,219.33,219.32,46.19464955]
[1759355256186,1e-08,219.33,219.32,48.0203416]
[1759355257788,1e-08,219.33,219.32,17.54603809]
[1759355257991,1e-08,219.33,219.32,51.90988929]
[1759355258404,1e-08,219.33,219.32,52.57988929]
[1759355259395,1e-08,219.34,219.33,15.72013815]
[1759355259597,1e-08,219.34,219.33,18.28398935]
[1759355260210,1e-08,219.34,219.33,20.10951475]
[1759355263210,0.2,219.37,219.33,20.10951475]
[1759355263409,0.2,219.37,219.36,13.44032641]
[1759355263724,0.2,219.37,219.36,45.22032641]
[1759355263926,0.2,219.37,219.36,47.04585181]
[1759355264132,0.2,219.37,219.36,60.90117593]
[1759355264296,0.2,219.37,219.36,65.45989219]
[1759355266422,0.2,219.37,219.36,65.74421533]
[1759355275915,0.2,219.37,219.36,66.46421533]
[1759355276499,0.2,219.37,219.36,65.74421533]
[1759355279215,0.67,219.43,219.39,10.87647521]
[1759355279420,0.67,219.43,219.4,34.62817434]
[1759355279720,0.67,219.42,219.4,34.62817434]
[1759355279926,0.67,219.42,219.41,2.5638512]
[1759355280098,0.2,219.44,219.42,10.87647521]
[1759355280302,0.2,219.44,219.43,47.2137372]
[1759355280828,0.2,219.44,219.43,49.7775884]
[1759355281023,0.2,219.44,219.43,7.12111319]
[1759355281229,0.87,219.44,219.43,4.55726199]
[1759355292437,0.87,219.44,219.4,31.78]
[1759355292438,0.87,219.44,219.4,4.55788514]
[1759355292638,0.67,219.43,219.4,4.55788514]
[1759355292829,0.67,219.42,219.4,4.55788514]
[1759355298634,0.67,219.41,219.4,4.55788514]
[1759355300448,0.67,219.41,219.39,15.43255795]
[1759355300449,0.67,219.41,219.39,9.11416323]
[1759355300633,0.66,219.4,219.39,4.55808049]
[1759355302640,0.66,219.4,219.37,15.95474766]
[1759355303844,1.63867564,219.43,219.37,15.95474766]
[1759355304156,0.7,219.39,219.37,15.95474766]
[1759355305646,0.7,219.4,219.37,15.95474766]
[1759355307961,0.7,219.4,219.37,16.65474766]
[1759355312461,1.63867564,219.43,219.37,16.65474766]
[1759355312667,0.7,219.42,219.37,16.65474766]
[1759355312840,0.7,219.41,219.37,16.65474766]
[1759355314352,1.63867564,219.43,219.37,16.65474766]
[1759355314549,0.7,219.42,219.37,16.65474766]
[1759355314862,0.7,219.41,219.37,16.65474766]
[1759355315454,1.63867564,219.43,219.38,0.7]
[1759355315645,0.7,219.42,219.38,0.7]
[1759355315965,0.7,219.41,219.38,0.7]
[1759355316547,0.7,219.41,219.39,4.55809289]
[1759355318670,0.7,219.4,219.37,15.95474766]
[1759355318840,0.7,219.39,219.37,15.95474766]
[1759355319044,0.7,219.38,219.37,15.95474766]
[1759355319665,1.63867564,219.41,219.37,11.39623921]
[1759355319945,0.7,219.39,219.37,11.39623921]
[1759355320666,0.7,219.38,219.37,11.39623921]
[1759355321670,1.63867564,219.41,219.37,11.39623921]
[1759355321862,0.7,219.4,219.37,11.39623921]
[1759355322169,0.7,219.39,219.37,15.95474766]
[1759355323772,1.63867564,219.41,219.37,15.95474766]
[1759355323981,0.7,219.4,219.37,12.09623921]
[1759355324572,0.7,219.4,219.37,11.39623921]
[1759355325469,0.7,219.4,219.37,15.95474766]
[1759355325844,1.63867564,219.41,219.37,15.95474766]
[1759355326049,0.7,219.4,219.37,15.95474766]
[1759355327067,0.7,219.4,219.37,12.09623921]
[1759355327369,0.7,219.4,219.37,11.39623921]
[1759355328064,1.63867564,219.43,219.37,15.95474766]
[1759355328268,0.7,219.41,219.37,16.65474766]
[1759355328462,0.7,219.4,219.37,16.65474766]
[1759355331376,1.63867564,219.43,219.37,16.65474766]
[1759355331555,0.7,219.41,219.37,16.65474766]
[1759355333078,0.7,219.41,219.37,15.95474766]
[1759355333262,0.7,219.41,219.38,0.7]
[1759355333462,0.7,219.41,219.39,4.55809289]
[1759355337502,0.68,219.4,219.33,0.7]
[1759355337783,1.63867564,219.37,219.34,0.7]
[1759355338162,1.63867564,219.38,219.34,0.7]
[1759355338563,0.68,219.38,219.35,0.7]
[1759355339190,0.68,219.38,219.36,4.55871626]
[1759355339488,1.63867564,219.39,219.36,4.55871626]
[1759355339688,1.63867564,219.39,219.36,5.25871626]
[1759355339889,1.63867564,219.38,219.36,5.25871626]
[1759355340496,1.63867564,219.38,219.35,0.7]
[1759355340662,0.68,219.39,219.35,0.7]
[1759355342099,0.68,219.39,219.36,4.55871626]
[1759355342582,2.31867564,219.39,219.36,4.55871626]
[1759355342889,1.63867564,219.39,219.36,4.55871626]
[1759355343091,1.63867564,219.38,219.36,4.55871626]
[1759355344167,1.63867564,219.38,219.33,10.87647521]
[1759355344388,1.63867564,219.38,219.36,0.7]
[1759355344698,0.68,219.39,219.36,0.7]
[1759355345877,0.68,219.39,219.32,29.91835038]
[1759355346104,21.48,219.38,219.31,0.7]
[1759355346276,1.63867564,219.33,219.31,0.7]
[1759355350483,1.63867564,219.33,219.3,0.7]
[1759355351078,2.31867564,219.33,219.3,0.7]
[1759355352508,2.31867564,219.33,219.25,0.7]
[1759355352509,1.63867564,219.31,219.25,0.7]
[1759355352680,0.68,219.32,219.23,0.7]
[1759355352875,1.63867564,219.27,219.23,0.7]
[1759355353078,0.68,219.26,219.23,0.7]
[1759355353885,20.8,219.3,219.23,0.7]
[1759355353886,0.68,219.27,219.23,0.7]
[1759355354086,2.31867564,219.27,219.21,10.87647521]
[1759355354390,2.31867564,219.27,219.23,4.56134405]
[1759355354581,2.31867564,219.27,219.23,5.26134405]
[1759355355000,1.63867564,219.27,219.23,5.26134405]
[1759355355313,0.68,219.26,219.23,5.26134405]
[1759355355893,0.68,219.26,219.2,13.04378512]
[1759355356107,0.68,219.26,219.21,16.13831089]
[1759355356491,0.68,219.26,219.22,0.7]
[1759355356914,2.31867564,219.26,219.22,0.7]
[1759355357288,25.36003603,219.3,219.18,10.87647521]
[1759355357289,0.68,219.25,219.18,10.87647521]
[1759355357607,21.48,219.24,219.19,0.7]
[1759355358009,1.63867564,219.21,219.18,0.7]
[1759355358197,3.2460672,219.21,219.18,0.7]
[1759355358883,0.68,219.23,219.18,3.2660672]
[1759355359204,0.68,219.26,219.19,0.7]
[1759355359408,2.5660672,219.24,219.19,0.7]
[1759355359900,3.2460672,219.24,219.19,0.7]
[1759355360222,3.2460672,219.24,219.2,4.56204379]
[1759355360414,3.2460672,219.24,219.2,5.26204379]
[1759355361289,3.2460672,219.24,219.2,4.56204379]
[1759355361513,3.2460672,219.24,219.21,0.68]
[1759355362200,3.2460672,219.24,219.18,15.96861026]
[1759355362404,3.2460672,219.24,219.19,0.68]
[1759355363611,3.2460672,219.24,219.2,4.56204379]
[1759355363818,3.2460672,219.24,219.2,5.28204379]
[1759355364314,2.5660672,219.23,219.2,5.28204379]
[1759355364991,3.2460672,219.23,219.2,5.28204379]
[1759355365717,2.5660672,219.23,219.2,5.28204379]
[1759355365902,0.68,219.24,219.2,0.72]
[1759355366096,2.5660672,219.23,219.2,0.72]
[1759355366491,2.5660672,219.21,219.17,0.2]
[1759355366709,32.52,219.27,219.17,0.2]
[1759355366710,3.2460672,219.2,219.17,0.2]
[1759355367097,3.2460672,219.19,219.17,0.2]
[1759355367505,0.68,219.19,219.17,0.2]
[1759355367697,0.68,219.19,219.17,4.76262793]
[1759355371921,3.2460672,219.19,219.17,4.76262793]
[1759355373316,0.68,219.19,219.17,4.76262793]
[1759355373822,3.2460672,219.19,219.17,4.76262793]
[1759355374219,2.5660672,219.19,219.17,0.2]
[1759355374422,3.2460672,219.18,219.17,0.2]
[1759355376308,21.48,219.18,219.17,0.2]
[1759355376506,24.0460672,219.18,219.17,0.2]
[1759355376708,25.8743461,219.18,219.17,0.2]
[1759355377919,36.75082131,219.18,219.17,0.2]
[1759355378119,36.23914345,219.17,219.15,0.2]
[1759355378298,13.44254241,219.16,219.15,0.2]
[1759355378501,50.91690057,219.16,219.15,0.2]
[1759355379104,20.8,219.13,219.12,0.2]
[1759355379330,23.3660672,219.13,219.12,0.2]
[1759355379533,21.48,219.13,219.12,0.2]
[1759355379708,25.87468042,219.13,219.12,0.2]
[1759355379903,23.30861322,219.13,219.12,0.2]
[1759355380132,25.87468042,219.13,219.12,0.2]
[1759355381307,43.88072394,219.13,219.12,0.2]
[1759355381512,46.9150821,219.13,219.12,0.2]
[1759355382831,41.7829477,219.13,219.12,0.2]
[1759355383131,81.1150821,219.13,219.12,0.2]
[1759355383534,75.9829477,219.13,219.12,0.2]
[1759355383737,78.5490149,219.13,219.12,0.2]
[1759355385040,81.1150821,219.13,219.12,0.2]
[1759355385416,75.9829477,219.13,219.12,0.2]
[1759355385616,81.1150821,219.13,219.12,0.2]
[1759355387738,78.08072394,219.13,219.12,0.2]
[1759355389313,81.10552524,219.13,219.12,0.2]
[1759355394336,20.8,219.09,219.06,0.2]
[1759355394544,2.5660672,219.07,219.06,0.2]
[1759355395033,4.39493124,219.07,219.06,0.2]
[1759355399151,5.10493124,219.07,219.06,0.2]
[1759355399325,4.39493124,219.07,219.06,0.2]
[1759355400843,38.95493124,219.07,219.06,0.2]
[1759355401356,38.95493124,219.07,219.06,0.88]
[1759355401657,38.95493124,219.07,219.06,0.2]
[1759355401862,44.22968223,219.07,219.06,0.2]
[1759355402153,58.13921657,219.07,219.06,0.2]
[1759355402450,61.79148458,219.07,219.06,0.2]
[1759355402959,59.22541738,219.07,219.06,0.2]
[1759355403250,58.13921657,219.07,219.06,0.2]
[1759355403629,55.57314937,219.07,219.06,0.2]
[1759355403828,58.13921657,219.07,219.06,0.2]
[1759355404947,60.5240325,219.07,219.06,0.2]
[1759355405333,64.09785784,219.07,219.06,0.2]
[1759355406332,61.53179064,219.07,219.06,0.2]
[1759355406535,64.09785784,219.07,219.06,0.2]
[1759355407137,20.8,219.03,218.99,0.1]
[1759355407349,23.3660672,219.0,218.99,0.1]
[1759355407544,59.2460672,219.0,218.99,0.78]
[1759355409870,10.87647521,218.99,218.98,0.2]
[1759355410375,20.8,218.96,218.93,0.68]
[1759355410543,2.5660672,218.94,218.93,0.68]
[1759355411045,4.39610265,218.94,218.93,0.68]
[1759355411243,4.39610265,218.94,218.92,0.1]
[1759355411244,4.56767003,218.93,218.92,0.1]
[1759355411441,54.50021244,218.93,218.92,0.1]
[1759355411864,51.93414524,218.93,218.92,0.1]
[1759355412071,54.50021244,218.93,218.92,0.1]
[1759355413546,51.93414524,218.93,218.92,0.1]
[1759355413865,54.50021244,218.93,218.92,0.1]
[1759355416647,54.50021244,218.93,218.9,0.2]
[1759355416648,57.06627964,218.93,218.9,0.2]
[1759355416849,13.90828015,218.92,218.9,0.2]
[1759355417358,17.18434735,218.92,218.9,0.2]
[1759355417547,19.75041455,218.92,218.9,0.2]
[1759355417976,14.61828015,218.92,218.9,0.2]
[1759355418777,4.56808734,218.91,218.9,0.2]
[1759355418979,46.38022174,218.91,218.9,0.2]
[1759355419157,60.99850189,218.91,218.9,0.2]
[1759355419465,60.99850189,218.91,218.88,0.00012044]
[1759355419466,30.87647521,218.9,218.88,0.00012044]
[1759355419669,50.18254241,218.89,218.88,0.00012044]
[1759355419868,53.92434735,218.89,218.88,0.00012044]
[1759355420257,53.92434735,218.89,218.86,0.1]
[1759355420258,30.87647521,218.87,218.86,0.1]
[1759355420572,10.87647521,218.86,218.85,1e-08]
[1759355420770,10.87647521,218.81,218.8,0.1]
[1759355420979,50.30554242,218.81,218.8,0.1]
[1759355421167,51.00554242,218.81,218.8,0.1]
[1759355421553,52.83700232,218.81,218.8,0.1]
[1759355422253,60.43521879,218.81,218.8,0.1]
[1759355422452,57.40717735,218.81,218.8,0.1]
[1759355423670,59.05624456,218.81,218.8,0.1]
[1759355423862,57.40717735,218.81,218.8,0.1]
[1759355424067,60.43487295,218.81,218.8,0.1]
[1759355424272,62.08394016,218.81,218.8,0.1]